bitfinex-derivatives/quotes_ETHF0:USTF0_20241230
["timestamp","ask_amount","ask_price","bid_price","bid_amount"]
[1735557705885,0.2938,3410.0,3409.8,0.2938]
[1735557706386,0.8466,3410.2,3409.8,0.2938]
[1735557706573,0.8466,3410.2,3409.5,7.8185313]
[1735557706574,0.29382,3409.6,3409.5,7.8185313]
[1735557706780,0.29382,3409.6,3409.5,4.6107313]
[1735557707579,0.29382,3409.6,3409.4,0.29384]
[1735557707783,0.8472,3409.5,3409.4,0.29384]
[1735557708079,0.8472,3409.5,3409.3,4.6107313]
[1735557708287,3.50164,3409.4,3409.3,4.6107313]
[1735557708587,3.92974,3409.4,3409.3,4.6107313]
[1735557709287,0.29387,3409.1,3409.0,4.6107313]
[1735557710381,3.6359,3409.4,3409.0,4.6107313]
[1735557710586,3.2078,3409.4,3409.3,0.29385]
[1735557711287,3.40865503,3409.8,3409.3,2.35957844]
[1735557711488,3.40865503,3409.8,3409.7,0.29382]
[1735557712481,0.2938,3409.9,3409.6,2.65339844]
[1735557712685,0.29382,3409.7,3409.4,4.6107313]
[1735557712983,3.2078,3410.0,3409.4,4.9045713]
[1735557713177,3.2078,3410.0,3409.5,0.29383]
[1735557713178,0.29382,3409.7,3409.5,0.29383]
[1735557713583,3.2078,3410.0,3409.3,2.35957844]
[1735557713986,3.50159,3410.0,3409.7,0.29381]
[1735557714182,3.2078,3410.0,3409.7,0.29381]
[1735557714387,0.2938,3409.9,3409.7,0.29381]
[1735557715389,0.29382,3409.7,3409.5,0.29383]
[1735557715593,3.2078,3410.0,3409.6,4.6107313]
[1735557715789,0.29381,3409.8,3409.6,4.6107313]
[1735557716088,0.29382,3409.7,3409.6,4.6107313]
[1735557716685,0.29382,3409.7,3409.5,7.14177602]
[1735557716993,0.29382,3409.6,3409.5,6.84794602]
[1735557717991,3.50162,3409.6,3409.5,6.84794602]
[1735557718485,3.50162,3409.6,3409.5,4.61588513]
[1735557719488,3.64870678,3409.6,3408.9,3.05588513]
[1735557719688,0.29388,3409.0,3408.9,3.05588513]
[1735557720084,0.29387,3409.1,3408.9,3.05588513]
[1735557720394,0.29387,3409.1,3408.9,3.34976513]
[1735557720689,4.31494006,3409.5,3408.9,3.05588513]
[1735557720898,0.29387,3409.1,3408.9,3.05588513]
[1735557721092,0.29387,3409.1,3408.9,3.34976513]
[1735557721789,0.29387,3409.1,3408.9,3.05588513]
[1735557721985,0.29385,3409.3,3408.9,3.05588513]
[1735557722191,3.87684006,3409.5,3408.9,3.05588513]
[1735557722392,0.29386,3409.2,3408.9,0.29388]
[1735557722592,0.29385,3409.3,3409.0,0.29387]
[1735557722792,0.4277,3409.5,3408.7,6.01667844]
[1735557723095,0.29389,3408.9,3408.7,5.86127844]
[1735557723294,1.16231,3409.5,3408.7,5.56737844]
[1735557723295,0.4277,3409.5,3408.7,5.56737844]
[1735557723591,0.29384,3409.4,3408.8,0.29389]
[1735557723797,0.29388,3409.1,3408.8,0.29389]
[1735557724299,3.87692429,3409.5,3408.8,4.40799759]
[1735557724499,0.29389,3408.9,3408.8,4.11410759]
[1735557725692,0.29392,3408.6,3408.4,9.33335013]
[1735557725898,0.29392,3408.5,3408.4,9.33335013]
[1735557726900,0.29392,3408.6,3408.4,9.33335013]
[1735557727298,0.29392,3408.6,3408.4,9.62727013]
[1735557727500,0.29392,3408.6,3408.4,0.39439]
[1735557728200,0.29392,3408.5,3408.4,0.10047]
[1735557728910,2.29732389,3409.1,3408.4,2.46004844]
[1735557729100,2.29732389,3409.1,3408.8,3.2078]
[1735557729404,2.29732389,3409.1,3409.0,0.29388]
[1735557729901,2.29732389,3409.1,3409.0,0.72128]
[1735557730101,2.29732389,3409.1,3409.0,0.4274]
[1735557730295,2.59119389,3409.1,3409.0,0.72128]
[1735557730496,0.29387,3409.1,3409.0,0.72128]
[1735557731000,0.29387,3409.2,3409.0,0.72128]
[1735557731906,0.29387,3409.1,3409.0,0.4274]
[1735557732201,0.29387,3409.1,3409.0,0.72128]
[1735557732509,0.29386,3409.2,3409.0,0.72128]
[1735557733307,0.436,3409.4,3409.0,0.4274]
[1735557733805,0.29385,3409.3,3409.1,0.29387]
[1735557734397,0.436,3409.4,3409.0,0.4274]
[1735557734603,0.29387,3409.1,3409.0,0.4274]
[1735557734911,0.29386,3409.2,3409.0,0.72127]
[1735557735209,0.29385,3409.3,3409.1,0.29386]
[1735557735405,0.29385,3409.4,3409.2,0.29385]
[1735557735610,0.29382,3409.7,3409.4,0.29384]
[1735557735908,0.29383,3409.6,3409.4,0.29384]
[1735557736110,0.29384,3409.5,3409.3,0.29385]
[1735557736311,0.29383,3409.6,3409.3,0.29385]
[1735557736611,0.29384,3409.5,3409.3,0.29385]
[1735557737200,0.29383,3409.5,3409.3,0.29385]
[1735557738799,3.622,3409.9,3409.0,2.78697844]
[1735557738997,0.29385,3409.4,3409.2,0.29385]
[1735557739206,4.35651,3409.9,3409.0,2.78697844]
[1735557739207,3.622,3409.9,3409.0,2.78697844]
[1735557739407,0.29384,3409.5,3409.3,0.29385]
[1735557739711,0.29385,3409.4,3409.2,0.29386]
[1735557740213,0.29385,3409.4,3409.3,0.29385]
[1735557740804,0.29384,3409.5,3409.3,0.29384]
[1735557741009,0.29384,3409.5,3409.4,0.29384]
[1735557742213,3.622,3409.9,3409.0,12.01985857]
[1735557742504,0.29385,3409.4,3409.3,0.29384]
[1735557743305,0.73455,3409.7,3409.0,12.01985857]
[1735557743511,0.29386,3409.2,3409.1,0.29386]
[1735557745411,0.29386,3409.2,3409.1,4.40432913]
[1735557745614,0.29386,3409.3,3409.2,0.29385]
[1735557746012,3.622,3409.9,3409.1,4.11046913]
[1735557746013,3.2078,3409.9,3409.1,4.11046913]
[1735557746210,0.29382,3409.6,3409.5,2.65340844]
[1735557746413,3.2078,3409.9,3409.2,5.56737844]
[1735557746614,0.29384,3409.5,3409.4,0.29384]
[1735557746804,0.29385,3409.4,3409.3,0.29385]
[1735557747416,0.29385,3409.3,3409.2,9.97170757]
[1735557747604,0.29385,3409.3,3409.2,7.31826913]
[1735557747804,0.29385,3409.3,3409.2,3.50166]
[1735557749911,0.29385,3409.3,3409.2,0.29386]
[1735557750516,0.4245,3409.6,3409.2,4.11240013]
[1735557750717,0.29384,3409.4,3409.3,0.29384]
[1735557751517,0.29384,3409.4,3409.3,4.40624013]
[1735557751719,0.71833,3409.6,3409.5,0.29383]
[1735557752320,0.29383,3409.6,3409.5,0.29383]
[1735557753023,0.29384,3409.5,3409.4,0.29384]
[1735557753419,0.4429,3409.7,3409.2,11.59245857]
[1735557753824,0.29384,3409.5,3409.4,0.29383]
[1735557754521,0.4429,3409.7,3409.2,2.35957844]
[1735557754720,0.29385,3409.4,3409.3,0.29384]
[1735557755020,0.4429,3409.7,3409.2,2.35957844]
[1735557755222,0.29384,3409.5,3409.4,0.29384]
[1735557756111,0.29384,3409.4,3409.3,4.40660297]
[1735557757122,0.29384,3409.4,3409.3,4.11276297]
[1735557757530,0.72894,3409.4,3409.3,4.11276297]
[1735557759629,0.4351,3409.4,3409.0,0.29387]
[1735557759926,0.29386,3409.3,3409.0,0.29387]
[1735557760123,0.29386,3409.2,3409.0,0.29387]
[1735557760623,0.29387,3409.1,3408.9,0.29388]
[1735557761231,0.418,3409.0,3408.9,0.29388]
[1735557762329,0.29389,3408.8,3408.7,9.23288013]
[1735557763230,0.71039,3408.8,3408.7,9.23288013]
[1735557763630,0.4165,3408.8,3408.7,9.23288013]
[1735557763836,0.4165,3408.8,3408.7,9.52678013]
[1735557764135,0.4165,3408.8,3408.4,2.46004844]
[1735557764328,0.7104,3408.8,3408.6,3.50171]
[1735557765230,3.00920389,3409.0,3408.7,0.2939]
[1735557765531,3.44922429,3409.2,3409.1,0.29387]
[1735557765532,2.29732389,3409.2,3409.1,0.29387]
[1735557766731,3.50164,3409.5,3409.1,4.11318125]
[1735557767033,3.50163,3409.5,3409.4,0.29384]
[1735557767536,3.50163,3409.5,3409.3,0.29385]
[1735557768038,0.29385,3409.4,3409.2,0.29385]
[1735557768238,3.50164,3409.5,3409.3,0.29385]
[1735557770139,3.2078,3409.5,3409.0,2.35957844]
[1735557770339,3.2078,3409.5,3409.4,0.29384]
[1735557770542,2.29732389,3409.7,3409.6,0.29382]
[1735557771934,2.59114389,3409.7,3409.5,0.72133]
[1735557772134,2.29732389,3409.7,3409.5,0.4275]
[1735557772336,2.29732389,3409.7,3409.6,0.29382]
[1735557772541,0.2938,3409.9,3409.7,0.29382]
[1735557772735,0.2938,3409.9,3409.5,0.4275]
[1735557773042,0.2938,3409.9,3409.7,0.29381]
[1735557773340,5.50512389,3410.0,3409.7,1.19]
[1735557773545,5.50512389,3410.0,3409.9,0.2938]
[1735557775342,3.2078,3410.0,3409.9,4.40816881]
[1735557776438,0.29378,3410.2,3410.0,0.29379]
[1735557776639,0.29378,3410.2,3409.9,7.32216881]
[1735557776946,0.29378,3410.2,3410.0,0.4209]
[1735557777149,0.29377,3410.3,3410.0,0.71469]
[1735557777339,0.29377,3410.3,3410.1,0.4566]
[1735557778645,0.29377,3410.2,3410.1,0.4566]
[1735557779648,0.4502,3410.4,3410.1,0.4566]
[1735557779846,0.29377,3410.3,3410.1,0.4566]
[1735557780048,0.29377,3410.2,3410.1,0.4566]
[1735557780546,0.29378,3410.1,3410.0,0.4209]
[1735557780944,0.4502,3410.4,3410.0,0.4209]
[1735557781248,0.29378,3410.2,3410.0,0.4209]
[1735557782352,0.29378,3410.2,3410.0,0.71469]
[1735557782752,0.29378,3410.2,3410.0,0.4209]
[1735557782949,0.29378,3410.1,3410.0,0.4209]
[1735557783150,0.4502,3410.4,3410.0,0.4209]
[1735557783349,0.29378,3410.2,3410.0,0.4209]
[1735557783648,0.29378,3410.1,3410.0,0.4209]
[1735557784243,0.29378,3410.2,3410.0,0.4209]
[1735557784849,0.29378,3410.1,3410.0,0.4209]
[1735557785355,0.29379,3410.0,3409.9,3.2078]
[1735557787952,0.2938,3409.9,3409.7,1.92131]
[1735557788158,0.2938,3409.9,3409.8,3.2078]
[1735557790153,2.29732389,3410.3,3409.8,3.2078]
[1735557790362,2.59109389,3410.3,3409.9,2.81617844]
[1735557790557,2.59109389,3410.3,3410.1,0.29377]
[1735557790861,0.29378,3410.2,3410.1,0.29378]
[1735557791861,0.29378,3410.1,3410.0,0.29379]
[1735557792155,0.29378,3410.2,3410.0,0.29379]
[1735557792758,0.29377,3410.3,3410.2,0.29377]
[1735557792958,0.29377,3410.3,3409.9,3.25347844]
[1735557793164,0.29377,3410.3,3410.1,0.29378]
[1735557793456,0.29377,3410.3,3409.9,3.25347844]
[1735557793658,0.29377,3410.3,3410.0,0.29379]
[1735557793856,0.29377,3410.3,3410.1,0.29378]
[1735557796356,0.4502,3410.4,3409.9,3.25347844]
[1735557796554,0.29378,3410.1,3410.0,0.29379]
[1735557796750,0.29378,3410.1,3409.9,3.54726844]
[1735557796956,0.29378,3410.1,3409.9,1.18769]
[1735557797150,0.4502,3410.4,3410.1,0.29378]
[1735557797355,0.29377,3410.3,3410.1,0.29378]
[1735557799061,0.29377,3410.3,3410.1,0.29377]
[1735557800266,0.29378,3410.2,3410.0,1.47679]
[1735557801864,0.29376,3410.3,3410.0,1.47679]
[1735557802064,0.29378,3410.2,3410.0,1.47679]
[1735557802264,0.29378,3410.2,3410.1,0.29378]
[1735557803668,0.29378,3410.2,3410.0,1.47678]
[1735557804067,0.29378,3410.2,3410.1,0.29378]
[1735557805068,0.29378,3410.2,3410.0,1.183]
[1735557805069,0.29378,3410.1,3410.0,1.183]
[1735557805373,0.29378,3410.1,3410.0,1.47679]
[1735557807585,0.4502,3410.4,3410.0,1.183]
[1735557807785,0.29378,3410.1,3410.0,1.47679]
[1735557808587,0.29378,3410.1,3410.0,1.183]
[1735557810184,0.29378,3410.1,3410.0,1.47679]
[1735557812189,0.29378,3410.1,3410.0,2.51072481]
[1735557812393,0.29378,3410.1,3410.0,13.54650487]
[1735557812989,0.29378,3410.1,3410.0,13.25271487]
[1735557813489,0.29378,3410.1,3410.0,13.54650487]
[1735557814182,0.29378,3410.1,3410.0,16.75430487]
[1735557815090,0.29378,3410.1,3410.0,13.54650487]
[1735557815392,0.29378,3410.1,3410.0,15.57130487]
[1735557816789,0.29378,3410.1,3410.0,14.53737006]
[1735557816990,0.29378,3410.1,3410.0,15.57130487]
[1735557817488,0.29378,3410.2,3410.1,0.29378]
[1735557818686,2.29732389,3410.3,3410.0,8.35528918]
[1735557818893,0.29377,3410.2,3410.0,8.64906918]
[1735557819093,0.29377,3410.2,3410.1,4.11355437]
[1735557820399,2.29732389,3410.3,3410.1,4.11355437]
[1735557820590,2.29732389,3410.3,3410.2,0.29377]
[1735557820789,2.29732389,3410.3,3410.2,1.32770481]
[1735557820989,3.44922429,3410.4,3410.2,1.03393481]
[1735557821297,3.44922429,3410.4,3410.3,0.29376]
[1735557821491,3.44922429,3410.4,3410.3,0.73586]
[1735557821795,3.44922429,3410.4,3410.3,0.29376]
[1735557821996,3.44922429,3410.4,3410.3,0.73586]
[1735557822493,2.3026589,3410.5,3410.4,0.29375]
[1735557822692,2.3026589,3410.5,3410.4,1.32768481]
[1735557822893,2.3026589,3410.5,3410.4,1.74028481]
[1735557823591,2.3026589,3410.6,3410.5,0.29375]
[1735557823794,2.3026589,3410.6,3410.5,0.70855]
[1735557824498,2.3026589,3410.6,3410.5,1.89155]
[1735557825091,2.5963889,3410.7,3410.6,0.29374]
[1735557825291,2.3026589,3410.7,3410.6,1.32767481]
[1735557825697,2.3026589,3410.7,3410.6,1.03393481]
[1735557825898,2.5963889,3410.7,3410.6,1.03393481]
[1735557826406,0.29373,3410.7,3410.6,12.07846306]
[1735557826798,0.29373,3410.7,3410.6,11.04452825]
[1735557827004,0.29373,3410.7,3410.6,12.07846306]
[1735557828006,2.5963889,3410.7,3410.6,5.14748918]
[1735557828697,5.8041889,3410.7,3410.6,4.11355437]
[1735557829094,0.29374,3410.5,3410.4,6.93097388]
[1735557830307,2.5963989,3410.5,3410.4,4.11985111]
[1735557832006,0.29375,3410.4,3410.3,6.93097388]
[1735557832208,1.15995,3410.4,3410.3,6.93097388]
[1735557833312,1.15995,3410.4,3410.3,11.05093836]
[1735557834714,1.15995,3410.4,3410.3,4.11996448]
[1735557836012,1.15995,3410.4,3410.3,13.35284461]
[1735557838513,3.4626089,3410.4,3410.3,11.05303942]
[1735557839816,1.15995,3410.4,3410.3,4.11996448]
[1735557841220,0.73805,3410.4,3410.3,4.11996448]
[1735557841418,1.19145,3410.4,3410.3,11.05303942]
[1735557842113,0.73805,3410.4,3410.3,11.34679942]
[1735557842418,0.4443,3410.4,3410.3,11.77229942]
[1735557842619,0.4443,3410.4,3410.3,12.21039942]
[1735557842920,0.73805,3410.4,3410.3,5.27732448]
[1735557843320,0.4443,3410.4,3410.3,5.27732448]
[1735557844921,2.30145838,3410.5,3410.3,4.98356448]
[1735557845220,2.30145838,3410.5,3410.4,0.29375]
[1735557845420,2.30145838,3410.5,3410.4,1.32768481]
[1735557846311,0.29375,3410.4,3410.3,5.27731448]
[1735557846516,2.59520838,3410.5,3410.4,0.29375]
[1735557846712,2.59520838,3410.5,3410.4,11.34637325]
[1735557847133,2.59520838,3410.5,3410.4,11.05262325]
[1735557847919,2.59520838,3410.5,3410.4,4.11996448]
[1735557849424,3.44922429,3410.5,3410.4,4.62213561]
[1735557849624,3.74296429,3410.5,3410.4,4.62213561]
[1735557850524,0.29374,3410.5,3410.4,4.62213561]
[1735557851929,2.59479682,3410.5,3410.4,4.12118149]
[1735557853326,2.59479682,3410.5,3410.4,11.05384026]
[1735557855134,3.74296429,3410.5,3410.4,4.62221426]
[1735557856933,0.29375,3410.4,3410.3,4.62221426]
[1735557858133,0.29375,3410.4,3410.2,4.62221426]
[1735557858134,0.44074227,3410.4,3410.2,4.62221426]
[1735557858335,0.29376,3410.3,3410.2,4.62221426]
[1735557859738,0.73450227,3410.4,3410.2,4.91598426]
[1735557859940,4.59896572,3410.5,3410.2,4.91598426]
[1735557859941,3.74424038,3410.3,3410.2,4.91598426]
[1735557860132,3.45048038,3410.3,3410.2,4.91598426]
[1735557860435,3.74424038,3410.3,3410.2,4.91598426]
[1735557860630,3.45048038,3410.3,3410.2,4.91598426]
[1735557861336,3.45048038,3410.4,3410.3,0.29376]
[1735557862838,0.29374,3410.6,3410.5,0.29374]
[1735557863040,0.29374,3410.6,3410.5,1.32767481]
[1735557864139,2.30079039,3410.7,3410.5,1.03393481]
[1735557864343,2.30079039,3410.7,3410.6,0.29374]
[1735557865543,2.59452039,3410.8,3410.6,11.33300091]
[1735557867444,2.59452039,3410.8,3410.7,4.10814631]
[1735557867644,2.59452039,3410.8,3410.7,4.40187631]
[1735557867845,2.30079039,3410.8,3410.7,5.43581112]
[1735557868446,2.30079039,3410.9,3410.7,12.07319572]
[1735557868650,2.30079039,3410.9,3410.8,0.29372]
[1735557870247,2.30079039,3411.0,3410.9,0.29371]
[1735557870444,2.30079039,3411.0,3410.9,1.32764481]
[1735557870650,2.30079039,3411.0,3410.9,1.77214481]
[1735557870947,2.59449039,3411.0,3410.9,1.77214481]
[1735557871351,2.30079039,3411.0,3410.9,1.77214481]
[1735557871950,0.2937,3411.1,3411.0,0.2937]
[1735557872142,0.2937,3411.1,3411.0,0.7356]
[1735557873449,0.2937,3411.1,3411.0,11.76656361]
[1735557875647,2.30079039,3411.5,3411.0,11.47286361]
[1735557875849,0.29367,3411.4,3411.3,0.29367]
[1735557876348,5.50859039,3411.6,3411.3,0.29368]
[1735557876349,0.29366,3411.5,3411.3,0.29368]
[1735557876747,0.29366,3411.5,3411.4,0.4524]
[1735557876943,5.80225039,3411.6,3411.4,1.77999481]
[1735557877155,2.30079039,3411.6,3411.4,4.69413481]
[1735557877347,2.30079039,3411.6,3411.5,0.29366]
[1735557877548,2.30079039,3411.7,3411.6,0.29365]
[1735557877850,2.30079039,3411.7,3411.6,1.32758481]
[1735557879555,3.74412038,3411.8,3411.6,1.03393481]
[1735557879556,0.29364,3411.8,3411.6,1.03393481]
[1735557879754,0.29364,3411.8,3411.7,0.29364]
[1735557880151,0.29364,3411.8,3411.7,0.75014]
[1735557881754,0.29364,3411.8,3411.7,0.4565]
[1735557882659,0.29364,3411.8,3411.7,0.75014]
[1735557882855,0.29364,3411.8,3411.7,0.4565]
[1735557884157,0.29364,3411.8,3411.7,0.75014]
[1735557884562,0.4376,3411.9,3411.7,0.4565]
[1735557884961,0.29363,3411.8,3411.7,0.75014]
[1735557886159,0.73611,3412.1,3411.7,0.4565]
[1735557886460,0.73611,3412.1,3412.0,1.03393481]
[1735557887156,0.4282,3412.2,3412.0,1.03393481]
[1735557887362,0.73519,3412.3,3412.1,0.29361]
[1735557887556,0.4416,3412.3,3412.2,1.32753481]
[1735557889263,3.2078,3412.6,3412.2,1.03393481]
[1735557889460,3.50137,3412.6,3412.4,1.03393481]
[1735557889660,0.29357,3412.5,3412.4,1.03393481]
[1735557889856,0.29358,3412.4,3412.3,0.4254]
[1735557890062,0.29359,3412.3,3412.2,1.03393481]
[1735557890262,0.71759,3412.4,3412.2,1.32753481]
[1735557890567,0.29359,3412.3,3412.2,1.03393481]
[1735557890761,0.29361,3412.1,3412.0,1.182]
[1735557891161,0.29361,3412.1,3412.0,1.03393481]
[1735557891359,0.424,3412.4,3412.0,1.03393481]
[1735557891567,0.29359,3412.3,3412.2,1.03393481]
[1735557892063,0.424,3412.4,3412.2,1.03393481]
[1735557892267,0.424,3412.4,3412.2,0.29359]
[1735557892570,0.424,3412.4,3412.3,0.29359]
[1735557893668,0.424,3412.4,3412.2,0.29359]
[1735557893863,0.424,3412.4,3412.1,0.4406]
[1735557894064,0.71759,3412.4,3412.2,0.29359]
[1735557894263,0.2936,3412.3,3412.1,0.7342]
[1735557894860,0.424,3412.4,3412.1,0.7342]
[1735557895165,0.424,3412.4,3412.1,0.4406]
[1735557895463,0.2936,3412.2,3412.1,0.4406]
[1735557895664,0.2936,3412.2,3412.1,0.73421]
[1735557895967,0.2936,3412.2,3412.1,0.4406]
[1735557896168,0.29361,3412.1,3412.0,0.29361]
[1735557896371,1.18651,3412.1,3412.0,0.29361]
[1735557896769,0.8929,3412.1,3411.8,3.2078]
[1735557897062,0.29362,3411.9,3411.8,4.3898]
[1735557898167,0.29362,3411.9,3411.8,4.68343]
[1735557898971,0.29362,3411.9,3411.8,3.50143]
[1735557899973,0.29362,3412.0,3411.9,0.29362]
[1735557900472,0.29361,3412.1,3411.9,0.29362]
[1735557900660,0.29362,3412.0,3411.9,0.29362]
[1735557900860,0.8787,3412.3,3411.8,3.2078]
[1735557901066,0.74972,3411.9,3411.8,3.2078]
[1735557901467,0.4561,3411.9,3411.8,3.50143]
[1735557901967,0.29361,3412.2,3411.9,0.29362]
[1735557902167,0.4561,3412.2,3412.1,0.29361]
[1735557902469,0.29362,3412.0,3411.9,0.4222]
[1735557902676,0.29362,3412.0,3411.9,0.71582]
[1735557903081,0.29361,3412.1,3412.0,0.29362]
[1735557903674,0.29362,3412.0,3411.9,0.71582]
[1735557903878,0.4407,3412.0,3411.9,0.71582]
[1735557904170,0.7339,3412.7,3411.9,0.71582]
[1735557904171,2.59434039,3412.8,3412.7,0.29356]
[1735557904377,2.30079039,3412.8,3412.7,0.29356]
[1735557905673,0.29354,3412.9,3412.7,0.29356]
[1735557906369,3.2078,3413.0,3412.6,0.4222]
[1735557906570,0.29354,3412.9,3412.8,0.29354]
[1735557907176,0.29354,3412.9,3412.6,0.4222]
[1735557907177,3.2078,3413.0,3412.9,0.29354]
[1735557907674,0.29354,3412.9,3412.7,0.29355]
[1735557907870,0.29354,3412.9,3412.6,0.4222]
[1735557907871,0.29354,3412.9,3412.8,0.29355]
[1735557908175,3.2078,3413.0,3412.8,0.29355]
[1735557908369,3.50133,3413.0,3412.8,0.29355]
[1735557908770,3.2078,3413.0,3412.9,0.29354]
[1735557909075,3.50133,3413.0,3412.9,0.29354]
[1735557909572,3.2078,3413.0,3412.6,0.4222]
[1735557909778,3.2078,3413.0,3412.9,0.29352]
[1735557910277,0.4407,3413.1,3413.0,0.29351]
[1735557910469,0.8535,3413.3,3413.2,0.29349]
[1735557911077,1.14698,3413.3,3413.1,0.29349]
[1735557912279,0.8535,3413.3,3412.9,0.8817]
[1735557912472,1.14699,3413.3,3413.1,0.2935]
[1735557912779,0.29349,3413.2,3413.1,0.2935]
[1735557913468,0.8535,3413.3,3413.1,0.2935]
[1735557913674,0.4564,3413.6,3413.1,5.55696487]
[1735557913870,0.4564,3413.6,3413.4,2.64263487]
[1735557914377,0.74986,3413.6,3413.4,2.34916487]
[1735557915270,0.29346,3413.5,3413.4,2.34916487]
[1735557915872,0.4564,3413.6,3413.4,2.34916487]
[1735557916072,0.74986,3413.6,3413.4,2.34916487]
[1735557916676,0.4564,3413.6,3413.5,3.2078]
[1735557916976,0.4564,3413.6,3413.5,3.50126]
[1735557917183,0.4564,3413.6,3413.5,3.92516]
[1735557917570,1.17834,3413.8,3413.6,0.29345]
[1735557917772,1.17834,3413.8,3413.5,4.0848]
[1735557917773,0.4371,3413.8,3413.5,4.0848]
[1735557917980,0.4371,3413.8,3413.6,0.29345]
[1735557918474,0.4371,3413.8,3413.7,0.4351]
[1735557918982,0.4371,3413.8,3413.7,0.72855]
[1735557919677,0.4371,3413.8,3413.7,0.4351]
[1735557919882,0.73054,3413.8,3413.7,0.4351]
[1735557920576,0.4371,3413.8,3413.7,0.72855]
[1735557921784,0.73443,3414.0,3413.7,2.78426487]
[1735557921985,1.15183,3414.0,3413.8,0.29344]
[1735557922278,0.29336,3414.7,3414.4,0.29339]
[1735557922478,2.30079039,3414.8,3414.3,6.74096487]
[1735557922678,3.01155039,3414.8,3414.6,0.29337]
[1735557923283,2.71819039,3414.8,3414.5,0.29338]
[1735557923676,2.71819039,3414.8,3414.6,0.29336]
[1735557923878,3.01155039,3414.8,3414.6,0.29336]
[1735557924079,0.71076,3414.8,3414.6,0.29336]
[1735557924283,0.8793,3415.0,3414.7,3.50115]
[1735557924284,0.29334,3415.0,3414.7,3.50115]
[1735557924682,0.29334,3415.0,3414.7,3.95245]
[1735557924878,0.29333,3415.1,3414.8,0.29335]
[1735557925181,1.2567,3415.3,3414.9,0.4163]
[1735557925583,0.29333,3415.0,3414.9,0.4163]
[1735557926387,0.2933,3415.4,3415.1,0.29332]
[1735557926690,3.2078,3415.6,3415.1,1.47732]
[1735557926890,0.2933,3415.4,3415.1,1.47732]
[1735557927184,0.29324,3416.1,3415.8,0.29326]
[1735557927381,0.29325,3416.1,3415.9,1.184]
[1735557927581,0.29323,3416.3,3415.9,1.47726]
[1735557927886,3.74370038,3416.4,3416.1,2.34916487]
[1735557928386,0.29323,3416.3,3416.1,2.34916487]
[1735557928776,3.45048038,3416.4,3416.0,0.86]
[1735557928978,0.29325,3416.0,3415.9,1.184]
[1735557929181,0.4499,3416.1,3415.8,3.2078]
[1735557929377,0.29326,3415.9,3415.8,4.3918]
[1735557930587,0.29326,3415.9,3415.8,3.2078]
[1735557930989,0.4249,3416.0,3415.6,0.29328]
[1735557930990,0.29327,3415.7,3415.6,1.184]
[1735557932386,0.29329,3415.5,3415.4,3.2078]
[1735557933294,0.4265,3415.6,3415.4,3.2078]
[1735557933591,0.29326,3415.9,3415.7,0.29327]
[1735557933784,3.2078,3416.2,3415.5,2.34916487]
[1735557933987,3.2078,3416.2,3415.8,0.29326]
[1735557934179,0.29324,3416.1,3415.9,0.29326]
[1735557934887,0.29324,3416.1,3415.5,2.34916487]
[1735557935092,0.29324,3416.1,3415.9,0.29326]
[1735557935392,0.29324,3416.1,3415.8,0.29326]
[1735557935994,0.4196,3416.0,3415.9,0.29326]
[1735557936181,0.29326,3415.9,3415.5,2.34916487]
[1735557936385,0.29326,3415.9,3415.7,0.29327]
[1735557936892,0.29326,3415.9,3415.8,2.79256487]
[1735557937289,0.29326,3415.9,3415.8,6.00036487]
[1735557938789,0.4196,3416.0,3415.8,6.00036487]
[1735557938990,0.29326,3415.9,3415.8,5.55696487]
[1735557939494,0.29323,3416.3,3416.1,0.29324]
[1735557940391,0.29323,3416.3,3416.0,0.4527]
[1735557940596,0.29323,3416.3,3416.1,0.29324]
[1735557940801,0.4405,3416.4,3416.0,0.4527]
[1735557941096,0.29323,3416.3,3416.1,2.64240487]
[1735557941297,0.73372,3416.4,3416.2,0.29323]
[1735557941496,0.73372,3416.4,3416.3,0.29322]
[1735557941497,0.4405,3416.4,3416.3,0.29322]
[1735557941795,3.501,3416.6,3416.4,0.29321]
[1735557943087,3.2078,3416.6,3416.4,0.29321]
[1735557943489,3.50101,3416.6,3416.3,0.29322]
[1735557943687,0.4471,3416.5,3416.3,0.29322]
[1735557943893,0.4471,3416.5,3416.1,2.34916487]
[1735557944097,0.4471,3416.5,3416.2,0.29323]
[1735557944396,0.4471,3416.5,3416.1,2.34916487]
[1735557944597,0.4471,3416.5,3415.9,1.6474]
[1735557944893,0.29322,3416.4,3416.0,0.29325]
[1735557945094,0.74031,3416.5,3416.2,0.29323]
[1735557945394,0.74031,3416.5,3416.3,0.29322]
[1735557945892,0.4471,3416.5,3416.3,3.2078]
[1735557946095,0.29323,3416.3,3416.1,0.74494]
[1735557947092,0.29323,3416.2,3416.1,0.4517]
[1735557947497,0.29323,3416.2,3416.0,1.48425]
[1735557947700,0.4471,3416.5,3415.9,3.6642]
[1735557947895,0.29329,3415.6,3415.4,0.7181]
[1735557948100,0.29328,3415.7,3415.5,0.73879]
[1735557948802,0.29326,3415.9,3415.8,0.29326]
[1735557949000,0.45,3416.0,3415.6,2.34916487]
[1735557949197,0.45,3416.0,3415.9,0.29326]
[1735557950093,0.29325,3416.1,3416.0,0.29325]
[1735557950798,0.29325,3416.1,3415.9,2.34916487]
[1735557950996,0.4512,3416.4,3415.7,3.2078]
[1735557951192,0.29323,3416.3,3415.7,3.50107]
[1735557951394,0.29327,3415.8,3415.7,3.50107]
[1735557951592,0.29327,3415.8,3415.7,4.69207]
[1735557951793,0.29327,3415.8,3415.7,4.3988]
[1735557951994,0.29327,3415.8,3415.7,3.2078]
[1735557952594,0.29329,3415.7,3415.6,2.78536487]
[1735557952801,0.29329,3415.8,3415.7,0.29328]
[1735557953002,0.4374,3416.0,3415.9,0.29327]
[1735557953903,0.4374,3416.0,3415.7,3.2078]
[1735557954404,0.29327,3415.9,3415.8,0.29328]